fUSD/lending_fUSD_20260423
["ID","MTS","AMOUNT","RATE_DAILY","PERIOD"]
[421014016,1776927799592,-204.79,0.00044198,120]
[421014017,1776927799619,-200.0,0.00044198,120]
[421014018,1776927799646,-200.0,0.00044198,120]
[421014019,1776927799675,-487.0,0.00044198,120]
[421014020,1776927799704,-200.0,0.00044198,120]
[421014021,1776927799732,-487.0,0.00044198,120]
[421014022,1776927799760,-200.0,0.00044198,120]
[421014023,1776927799786,-200.0,0.00044198,120]
[421014024,1776927799812,-200.0,0.00044198,120]
[421014025,1776927799840,-487.0,0.00044198,120]
[421014026,1776927799867,-200.0,0.00044198,120]
[421014027,1776927799895,-487.0,0.00044198,120]
[421014028,1776927799921,-200.0,0.00044198,120]
[421014029,1776927799948,-487.0,0.00044198,120]
[421014030,1776927799974,-200.0,0.00044198,120]
[421014031,1776927800000,-200.0,0.00044198,120]
[421014032,1776927800026,-2427.87398852,0.00044198,120]
[421014033,1776927800052,-288.92160614,0.00044198,120]
[421014034,1776927800079,-487.0,0.00044198,120]
[421014035,1776927800106,-487.0,0.00044198,120]
[421014036,1776927800133,-346.47450456,0.00044198,120]
[421014037,1776927800160,-340.9,0.00044198,120]
[421014038,1776927800186,-200.0,0.00044198,120]
[421014039,1776927800213,-957.67,0.00044198,120]
[421014040,1776927800241,-957.67,0.00044198,120]
[421014041,1776927800269,-957.67,0.00044198,120]
[421014042,1776927800296,-957.67,0.00044198,120]
[421014043,1776927800325,-957.67,0.00044198,120]
[421014044,1776927800353,-957.67,0.00044198,120]
[421014045,1776927800381,-957.67,0.00044198,120]
[421014046,1776927800410,-957.67,0.00044198,120]
[421014047,1776927800439,-957.67,0.00044198,120]
[421014048,1776927800469,-957.67,0.00044198,120]
[421014049,1776927800498,-957.67,0.00044198,120]
[421014050,1776927800528,-957.67,0.00044198,120]
[421014051,1776927800557,-957.67,0.00044198,120]
[421014052,1776927800584,-957.67,0.00044198,120]
[421014053,1776927800614,-957.67,0.00044198,120]
[421014054,1776927800642,-957.67,0.00044198,120]
[421014055,1776927800672,-957.67,0.00044198,120]
[421014056,1776927800702,-957.67,0.00044198,120]
[421014057,1776927800729,-957.67,0.00044198,120]
[421014058,1776927800756,-957.67,0.00044198,120]
[421014059,1776927800784,-957.67,0.00044198,120]
[421014060,1776927800812,-957.67,0.00044198,120]
[421014061,1776927800839,-957.67,0.00044198,120]
[421014062,1776927800870,-957.67,0.00044198,120]
[421014063,1776927800897,-957.67,0.00044198,120]
[421014064,1776927800925,-957.67,0.00044198,120]
[421014065,1776927800954,-957.67,0.00044198,120]
[421014066,1776927800982,-957.67,0.00044198,120]
[421014067,1776927801008,-1200.0,0.00044198,120]
[421014068,1776927801377,-1674.22,0.00044198,120]
[421014069,1776927801404,-3732.81,0.00044198,120]
[421014070,1776927801435,-877.79,0.00044198,120]
[421014071,1776927801463,-877.79,0.00044198,120]
[421014072,1776927801490,-877.79,0.00044198,120]
[421014073,1776927801517,-877.79,0.00044198,120]
[421014074,1776927801544,-877.79,0.00044198,120]
[421014075,1776927801571,-877.79,0.00044198,120]
[421014076,1776927801599,-877.79,0.00044198,120]
[421014077,1776927801626,-877.79,0.00044198,120]
[421014078,1776927801652,-293.96099923,0.00044198,120]
[421014079,1776927801680,-2064.23784829,0.00044198,120]
[421014080,1776927801707,-1886.88000941,0.00044198,120]
[421014081,1776927801736,-260.63099256,0.00044198,120]
[421014082,1776927801763,-451.46369268,0.00044198,120]
[421014083,1776927801789,-169.67534651,0.00044198,120]
[421014084,1776927801815,-269.90263112,0.00044198,120]
[421014085,1776927801845,-997.6,0.00044198,120]
[421014086,1776927801872,-422.25359447,0.00044198,120]
[421014087,1776927801900,-997.6,0.00044198,120]
[421014088,1776927801931,-997.6,0.00044198,120]
[421014089,1776927801960,-997.6,0.00044198,120]
[421014090,1776927801988,-997.6,0.00044198,120]
[421014091,1776927802018,-997.6,0.00044198,120]
[421014092,1776927802047,-1117.08317327,0.00044198,120]
[421014093,1776927802076,-617.48280099,0.00044198,120]
[421014094,1776927802104,-205.06325229,0.00044198,120]
[421014095,1776927802133,-272.67024,0.00044198,120]
[421014096,1776927802164,-1434.60868308,0.00044198,120]
[421014097,1776927802193,-259.97581438,0.00044198,120]
[421014098,1776927802222,-836.54056632,0.00044198,120]
[421014099,1776927802253,-500.9693856,0.00044198,120]
[421014100,1776927802280,-312.70567516,0.00044198,120]
[421014101,1776927802309,-756.0,0.00044198,120]
[421014102,1776927802336,-1449.5927199,0.00044198,120]
[421014103,1776927802366,-1453.25307581,0.00044198,120]
[421014104,1776927802396,-1094.29410073,0.00044198,120]
[421014105,1776927802425,-527.65944135,0.00044198,120]
[421014106,1776927802454,-184.23120613,0.00044198,120]
[421014107,1776927802483,-855.09188218,0.00044198,120]
[421014108,1776927802523,-564.58012775,0.00044198,120]
[421014109,1776927802556,-2124.63054828,0.00044198,120]
[421014110,1776927802586,-1299.13673791,0.00044198,120]
[421014111,1776927802615,-200.69256525,0.00044198,120]
[421014112,1776927802644,-280.0101469,0.00044198,120]
[421014113,1776927802673,-491.52163243,0.00044198,120]
[421014114,1776927802702,-1291.24132015,0.00044198,120]
[421014115,1776927802730,-1241.96695311,0.00044198,120]
[421014116,1776927802760,-487.45562051,0.00044198,120]
[421014117,1776927802788,-500.0,0.00044198,120]
[421014118,1776927802816,-1527.59674201,0.00044198,120]
[421014119,1776927802846,-1635.27178636,0.00044198,120]
[421014120,1776927802880,-2119.26074932,0.00044198,120]
[421014121,1776927802910,-312.54717625,0.00044198,120]
[421014122,1776927802939,-869.35960775,0.00044198,120]
[421014123,1776927802967,-291.96566315,0.00044198,120]
[421014124,1776927803005,-1859.94942497,0.00044198,120]
[421014125,1776927803034,-1789.17875974,0.00044198,120]
[421014126,1776927803064,-203.22481751,0.00044198,120]
[421014127,1776927803094,-491.21202183,0.00044198,120]
[421014128,1776927803123,-158.84747935,0.00044198,120]
[421014129,1776927803151,-601.90839678,0.00044198,120]
[421014130,1776927803180,-206.12420988,0.00044198,120]
[421014131,1776927803210,-501.62840911,0.00044198,120]
[421014132,1776927803240,-1005.86686202,0.00044198,120]
[421014133,1776927803270,-1005.8524289,0.00044198,120]
[421014134,1776927803301,-2000.0,0.00044198,120]
[421014135,1776927803332,-1810.91664124,0.00044198,120]
[421014136,1776927803364,-150.0,0.00044198,120]
[421014137,1776927803393,-150.0,0.00044198,120]
[421014138,1776927803422,-1625.6,0.00044198,120]
[421014139,1776927803450,-1178.07002637,0.00044198,120]
[421014140,1776927803486,-500.0,0.00044198,120]
[421014141,1776927803515,-500.0,0.00044198,120]
[421014142,1776927803544,-500.0,0.00044198,120]
[421014143,1776927803574,-500.0,0.00044198,120]
[421014144,1776927803604,-500.0,0.00044198,120]
[421014145,1776927803633,-504.69641004,0.00044198,120]
[421014146,1776927803664,-935.97726898,0.00044198,120]
[421014147,1776927803693,-262.86955832,0.00044198,120]
[421014148,1776927803723,-500.0,0.00044198,120]
[421014149,1776927803753,-500.0,0.00044198,120]
[421014150,1776927803781,-500.0,0.00044198,120]
[421014151,1776927803810,-500.0,0.00044198,120]
[421014152,1776927803839,-500.0,0.00044198,120]
[421014153,1776927803867,-500.0,0.00044198,120]
[421014154,1776927803896,-500.0,0.00044198,120]
[421014155,1776927803927,-500.0,0.00044198,120]
[421014156,1776927803956,-500.0,0.00044198,120]
[421014157,1776927803986,-527.75696938,0.00044198,120]
[421014158,1776927804016,-380128.85920325,0.00044198,120]
[421014159,1776927804046,-715.08978986,0.00044198,120]
[421014160,1776927804076,-2047.36853796,0.00044198,120]
[421014161,1776927804105,-181.62940889,0.00044198,120]
[421014162,1776927804135,-1681.49947103,0.00044198,120]
[421014163,1776927804671,-1064.8460528,0.00044198,120]
[421014164,1776927804699,-1207.58380795,0.00044198,120]
[421014165,1776927804727,-259.72320199,0.00044198,120]
[421014166,1776927804754,-1159.08920441,0.00044198,120]
[421014167,1776927804780,-526.68004549,0.00044198,120]
[421014168,1776927804808,-196.42296766,0.00044198,120]
[421014169,1776927804835,-937.94573951,0.00044198,120]
[421014170,1776927804861,-510.45188985,0.00044198,120]
[421014171,1776927804888,-787.58636955,0.00044198,120]
[421014172,1776927804916,-298.40292476,0.00044198,120]
[421014173,1776927804943,-1694.88598913,0.00044198,120]
[421014174,1776927804972,-12320.214765,0.00044198,120]
[421014175,1776927804998,-100000.0,0.00044198,120]
[421014176,1776927805026,-259401.94884902,0.00044198,120]
[421014177,1776927805054,-1853.03365729,0.00044198,120]
[421014178,1776927805082,-4428.93255,0.00044198,120]
[421014179,1776927805113,-782.62827728,0.00044198,120]
[421014180,1776927805140,-1400.0,0.00044198,120]
[421014181,1776927805167,-1000.0,0.00044198,120]
[421014182,1776927805195,-1000.0,0.00044198,120]
[421014183,1776927805224,-1000.0,0.00044198,120]
[421014184,1776927805251,-1000.0,0.00044198,120]
[421014185,1776927805279,-1000.0,0.00044198,120]
[421014186,1776927805307,-1000.0,0.00044198,120]
[421014187,1776927805336,-1000.0,0.00044198,120]
[421014188,1776927805364,-1000.0,0.00044198,120]
[421014189,1776927805391,-1000.0,0.00044198,120]
[421014190,1776927805418,-1089.7,0.00044198,120]
[421014191,1776927805445,-2157.61505911,0.00044198,120]
[421014192,1776927805473,-1290.80816864,0.00044198,120]
[421014193,1776927805499,-500.0,0.00044198,120]
[421014194,1776927805526,-2100.0,0.00044198,120]
[421014195,1776927805552,-2000.0,0.00044198,120]
[421014196,1776927805579,-2000.0,0.00044198,120]
[421014197,1776927805606,-2000.0,0.00044198,120]
[421014198,1776927805633,-2000.0,0.00044198,120]
[421014199,1776927805662,-2101.0,0.00044198,120]
[421014200,1776927805688,-2000.76,0.00044198,120]
[421014201,1776927805715,-6000.0,0.00044198,120]
[421014202,1776927805742,-200.0,0.00044198,120]
[421014203,1776927805768,-830.70809283,0.00044198,120]
[421014204,1776927805797,-4898.04799,0.00044198,120]
[421014205,1776927805824,-2380.0,0.00044198,120]
[421014206,1776927805851,-1995.0,0.00044198,120]
[421014207,1776927805878,-1398.0,0.00044198,120]
[421014208,1776927805904,-1001.45,0.00044198,120]
[421014209,1776927805931,-1000.0,0.00044198,120]
[421014210,1776927805958,-150.0,0.00044198,120]
[421014211,1776927805986,-20000.0,0.00044198,120]
[421014212,1776927806012,-3000.0,0.00044198,120]
[421014213,1776927806039,-30750.0,0.00044198,120]
[421014214,1776927806066,-349.88,0.00044198,120]
[421014215,1776927806094,-1000.0,0.00044198,120]
[421014216,1776927806123,-1000.0,0.00044198,120]
[421014217,1776927806151,-1000.0,0.00044198,120]
[421014218,1776927806180,-1000.0,0.00044198,120]
[421014219,1776927806209,-1000.0,0.00044198,120]
[421014220,1776927806237,-1000.0,0.00044198,120]
[421014221,1776927806265,-1000.0,0.00044198,120]
[421014222,1776927806292,-1000.0,0.00044198,120]
[421014223,1776927806321,-1000.0,0.00044198,120]
[421014224,1776927806348,-1000.0,0.00044198,120]
[421014225,1776927806375,-1000.0,0.00044198,120]
[421014226,1776927806402,-1000.0,0.00044198,120]
[421014227,1776927806429,-1000.0,0.00044198,120]
[421014228,1776927806457,-1000.0,0.00044198,120]
[421014229,1776927806484,-1000.0,0.00044198,120]
[421014230,1776927806511,-1000.0,0.00044198,120]
[421014231,1776927806538,-1000.0,0.00044198,120]
[421014232,1776927806565,-1000.0,0.00044198,120]
[421014233,1776927806591,-3435.31,0.00044198,120]
[421014234,1776927806618,-228.93,0.00044198,120]
[421014235,1776927806645,-16000.0,0.00044198,120]
[421014236,1776927806671,-5000.0,0.00044198,120]
[421014237,1776927806699,-5000.0,0.00044198,120]
[421014238,1776927806726,-192.45091484,0.00044198,120]
[421014239,1776927806755,-2471.895548,0.00044198,120]
[421014240,1776927806781,-153.02487522,0.00044198,120]
[421014241,1776927806807,-697.64778976,0.00044198,120]
[421014242,1776927806835,-28148.77,0.00044198,120]
[421014243,1776927806865,-28148.77,0.00044198,120]
[421014244,1776927806893,-28148.77,0.00044198,120]
[421014245,1776927806922,-28148.77,0.00044198,120]
[421014246,1776927806950,-397.1,0.00044198,120]
[421014247,1776927806979,-28148.77,0.00044198,120]
[421014248,1776927807007,-28148.77,0.00044198,120]
[421014249,1776927807035,-28148.77,0.00044198,120]
[421014250,1776927807062,-28148.77,0.00044198,120]
[421014251,1776927807090,-28148.77,0.00044198,120]
[421014252,1776927807117,-28148.77,0.00044198,120]
[421014253,1776927807144,-829.5449527,0.00044198,120]
[421014254,1776927807171,-28148.77,0.00044198,120]
[421014255,1776927807197,-28148.77,0.00044198,120]
[421014256,1776927807225,-28148.77,0.00044198,120]
[421014257,1776927807657,-28148.77,0.00044198,120]
[421014258,1776927807687,-28148.77,0.00044198,120]
[421014259,1776927807715,-28148.77,0.00044198,120]
[421014260,1776927807746,-28148.77,0.00044198,120]
[421014261,1776927807777,-28148.77,0.00044198,120]
[421014262,1776927807807,-28148.77,0.00044198,120]
[421014263,1776927807837,-28148.77,0.00044198,120]
[421014264,1776927807865,-28148.77,0.00044198,120]
[421014265,1776927807893,-28148.77,0.00044198,120]
[421014266,1776927807921,-28148.77,0.00044198,120]
[421014267,1776927807950,-28148.77,0.00044198,120]
[421014268,1776927807977,-264.31,0.00044198,120]
[421014269,1776927808003,-2100.0,0.00044198,120]
[421014270,1776927808030,-999.999999,0.00044198,120]
[421014271,1776927808056,-891.799321,0.00044198,120]
[421014272,1776927808082,-1000.0,0.00044198,120]
[421014273,1776927808108,-205.49390336,0.00044198,120]
[421014274,1776927808135,-8900.0,0.00044198,120]
[421014275,1776927808163,-2000.0,0.00044198,120]
[421014276,1776927808190,-2000.0,0.00044198,120]
[421014277,1776927808217,-2000.0,0.00044198,120]
[421014278,1776927808243,-2000.0,0.00044198,120]
[421014279,1776927808269,-329.57698871,0.00044198,120]
[421014280,1776927808296,-300.42940284,0.00044198,120]
[421014281,1776927808323,-161.6277861,0.00044198,120]
[421014282,1776927808349,-183.3161944,0.00044198,120]
[421014283,1776927808376,-1344.84864119,0.00044198,120]
[421014284,1776927808403,-263.35985447,0.00044198,120]
[421014285,1776927808429,-412.77875716,0.00044198,120]
[421014286,1776927808456,-1254.9192568,0.00044198,120]
[421014287,1776927808485,-1071.77784863,0.00044198,120]
[421014288,1776927808511,-246.0,0.00044198,120]
[421014289,1776927808538,-3768.6707129,0.00044198,120]
[421014290,1776927808566,-5000.0,0.00044198,120]
[421014291,1776927808596,-5000.0,0.00044198,120]
[421014292,1776927808626,-5000.0,0.00044198,120]
[421014293,1776927808656,-5000.0,0.00044198,120]
[421014294,1776927808684,-5000.0,0.00044198,120]
[421014295,1776927808712,-5000.0,0.00044198,120]
[421014296,1776927808741,-5000.0,0.00044198,120]
[421014297,1776927808770,-5000.0,0.00044198,120]
[421014298,1776927808800,-5000.0,0.00044198,120]
[421014299,1776927808829,-5000.0,0.00044198,120]
[421014300,1776927808858,-5000.0,0.00044198,120]
[421014301,1776927808887,-5000.0,0.00044198,120]
[421014302,1776927808915,-5000.0,0.00044198,120]
[421014303,1776927808944,-5000.0,0.00044198,120]
[421014304,1776927808973,-4002.8509,0.00044198,120]
[421014305,1776927808999,-619.13,0.00044198,120]
[421014306,1776927809026,-1299.999999,0.00044198,120]
[421014307,1776927809054,-1000.0,0.00044198,120]
[421014308,1776927809081,-1000.0,0.00044198,120]
[421014309,1776927809108,-1000.0,0.00044198,120]
[421014310,1776927809134,-1000.0,0.00044198,120]
[421014311,1776927809161,-1000.0,0.00044198,120]
[421014312,1776927809187,-420.0,0.00044198,120]
[421014313,1776927809214,-420.0,0.00044198,120]
[421014314,1776927809241,-350.0,0.00044198,120]
[421014315,1776927809268,-420.0,0.00044198,120]
[421014316,1776927809295,-350.0,0.00044198,120]
[421014317,1776927809323,-420.0,0.00044198,120]
[421014318,1776927809350,-350.0,0.00044198,120]
[421014319,1776927809377,-420.0,0.00044198,120]
[421014320,1776927809405,-350.0,0.00044198,120]
[421014321,1776927809432,-420.0,0.00044198,120]
[421014322,1776927809459,-350.0,0.00044198,120]
[421014323,1776927809486,-350.0,0.00044198,120]
[421014324,1776927809513,-185.65,0.00044198,120]
[421014325,1776927809540,-2082.2169559,0.00044198,120]
[421014326,1776927809569,-1140.0,0.00044198,120]
[421014327,1776927809597,-1140.0,0.00044198,120]
[421014328,1776927809626,-1140.0,0.00044198,120]
[421014329,1776927809654,-1140.0,0.00044198,120]
[421014330,1776927809682,-1140.0,0.00044198,120]
[421014331,1776927809710,-1140.0,0.00044198,120]
[421014332,1776927809739,-1140.0,0.00044198,120]
[421014333,1776927809768,-1140.0,0.00044198,120]
[421014334,1776927809796,-1140.0,0.00044198,120]
[421014335,1776927809823,-1140.0,0.00044198,120]
[421014336,1776927809851,-1140.0,0.00044198,120]
[421014337,1776927809878,-1140.0,0.00044198,120]
[421014338,1776927809905,-1140.0,0.00044198,120]
[421014339,1776927809932,-1140.0,0.00044198,120]
[421014340,1776927809960,-1140.0,0.00044198,120]
[421014341,1776927809988,-1140.0,0.00044198,120]
[421014342,1776927810017,-1140.0,0.00044198,120]
[421014343,1776927810045,-1140.0,0.00044198,120]
[421014344,1776927810073,-1140.0,0.00044198,120]
[421014345,1776927810101,-1140.0,0.00044198,120]
[421014346,1776927810129,-1140.0,0.00044198,120]
[421014347,1776927810156,-1140.0,0.00044198,120]
[421014348,1776927810184,-1140.0,0.00044198,120]
[421014349,1776927810212,-1140.0,0.00044198,120]
[421014350,1776927810239,-50000.0,0.00044198,120]
[421014351,1776927810613,-1293.384,0.00044198,120]
[421014352,1776927810648,-46931.76,0.00044198,120]
[421014353,1776927810676,-300.78,0.00044198,120]
[421014354,1776927810704,-400000.0,0.00044198,120]
[421014355,1776927810739,-500.0,0.00044198,120]
[421014356,1776927810769,-500.0,0.00044198,120]
[421014357,1776927810796,-500.0,0.00044198,120]
[421014358,1776927810826,-500.0,0.00044198,120]
[421014359,1776927810854,-500.0,0.00044198,120]
[421014360,1776927810884,-500.0,0.00044198,120]
[421014361,1776927810912,-500.0,0.00044198,120]
[421014362,1776927810941,-500.0,0.00044198,120]
[421014363,1776927810968,-20354.7587921,0.00044198,120]
[421014364,1776927810996,-261.0296555,0.00044198,120]
[421014365,1776927811025,-146868.29381828,0.00044198,120]
[421014366,1776927811053,-2000.0,0.00044198,120]
[421014367,1776927811081,-2000.0,0.00044198,120]
[421014368,1776927811110,-2000.0,0.00044198,120]
[421014369,1776927811137,-2000.0,0.00044198,120]
[421014370,1776927811165,-1412.0235426,0.00044198,120]
[421014371,1776927811192,-1329718.65546686,0.00044198,120]
[421014372,1776927811220,-2532.15699765,0.00044198,120]
[421014373,1776927811247,-21066.75857727,0.00044198,120]
[421014374,1776927826348,-178933.24142273,0.00044198,120]
[421014375,1776927826377,-5812.75063057,0.00044198,120]
[421014376,1776927826406,-101174.78796308,0.00044198,120]
[421014377,1776927826435,-1635.00050805,0.00044198,120]
[421014378,1776927826465,-20000.0,0.00044198,120]
[421014379,1776927826495,-20000.0,0.00044198,120]
[421014380,1776927826523,-20000.0,0.00044198,120]
[421014381,1776927826552,-20000.0,0.00044198,120]
[421014382,1776927826580,-6792.95323,0.00044198,120]
[421014383,1776927826608,-651.0,0.00044198,120]
[421014384,1776927826636,-13789.06,0.00044198,120]
[421014385,1776927826664,-51447.813283,0.00044198,120]
[421014386,1776927826693,-1156.8749844,0.00044198,120]
[421014387,1776927826723,-1855.31580351,0.00044198,120]
[421014388,1776927826751,-15517.049137,0.00044198,120]
[421014389,1776927826778,-201.90550114,0.00044198,120]
[421014390,1776927826806,-162.47363277,0.00044198,120]
[421014391,1776927826833,-207.53075138,0.00044198,120]
[421014392,1776927826862,-163.01,0.00044198,120]
[421014393,1776927826891,-163.01,0.00044198,120]
[421014394,1776927826921,-163.01,0.00044198,120]
[421014395,1776927826952,-2632.4732153,0.00044198,120]
[421014396,1776927826980,-163.01,0.00044198,120]
[421014397,1776927827013,-163.01,0.00044198,120]
[421014398,1776927827042,-163.01,0.00044198,120]
[421014399,1776927827072,-163.03,0.00044198,120]
[421014400,1776927827103,-1563.3476,0.00044198,120]
[421014401,1776927827131,-266.62,0.00044198,120]
[421014402,1776927827160,-362.5,0.00044198,120]
[421014403,1776927827191,-227.0,0.00044198,120]
[421014404,1776927827219,-239.0,0.00044198,120]
[421014405,1776927827247,-227184.8,0.00044198,120]
[421014406,1776927827275,-278.10673549,0.00044198,120]
[421014407,1776927827304,-1161.24071,0.00044198,120]
[421014408,1776927827332,-1530.70667179,0.00044198,120]
[421014409,1776927827361,-386.0,0.00044198,120]
[421014410,1776927827389,-321.0,0.00044198,120]
[421014411,1776927827419,-14903.46648522,0.00044198,120]
[421014412,1776927827447,-6415.29985247,0.00044198,120]
[421014413,1776927827475,-1272.56147598,0.00044198,120]
[421014414,1776927827503,-207.14920163,0.00044198,120]
[421014415,1776927827531,-893.37054696,0.00044198,120]
[421014416,1776927827559,-162.81977126,0.00044198,120]
[421014417,1776927827586,-37945.97016407,0.00044198,120]
[421014418,1776927827614,-1146.80246853,0.00044198,120]
[421014419,1776927827644,-2457.05326491,0.00044198,120]
[421014420,1776927827673,-5465.71297702,0.00044198,120]
[421014421,1776927827701,-150.0,0.00044198,120]
[421014422,1776927827731,-2245.0,0.00044198,120]
[421014423,1776927827759,-711.53534355,0.00044198,120]
[421014424,1776927827786,-2222.91,0.00044198,120]
[421014425,1776927827815,-151.234321,0.00044198,120]
[421014426,1776927827843,-317.04292414,0.00044198,120]
[421014427,1776927827872,-48969.06,0.00044198,120]
[421014428,1776927827900,-1062.09380521,0.00044198,120]
[421014429,1776927827929,-1086.44133527,0.00044198,120]
[421014430,1776927827960,-16085.0,0.00044198,120]
[421014431,1776927827988,-12500.0,0.00044198,120]
[421014432,1776927828017,-355.80602802,0.00044198,120]
[421014433,1776927828044,-259.72116304,0.00044198,120]
[421014434,1776927828074,-170000.0,0.00044198,120]
[421014435,1776927828104,-285.96,0.00044198,120]
[421014436,1776927828134,-2206.0,0.00044198,120]
[421014437,1776927828164,-329.0,0.00044198,120]
[421014438,1776927828193,-100000.0,0.00044198,120]
[421014439,1776927828221,-100000.0,0.00044198,120]
[421014440,1776927828249,-100000.0,0.00044198,120]
[421014441,1776927828277,-100000.0,0.00044198,120]
[421014442,1776927828305,-100000.0,0.00044198,120]
[421014443,1776927828333,-21724.53694468,0.00044198,120]
[421014444,1776927828363,-100000.0,0.00044198,120]
[421014445,1776927828394,-100000.0,0.00044198,120]
[421014446,1776927828422,-12805.40350143,0.00044198,120]
[421014447,1776927828451,-10000.0,0.00044198,120]
[421014448,1776927828479,-10000.0,0.00044198,120]
[421014449,1776927828507,-492.0,0.00044198,120]
[421014450,1776927828536,-42137.58971178,0.00044198,120]
[421014451,1776927828566,-12474.66136719,0.00044198,120]
[421014452,1776927828596,-308.08122471,0.00044198,120]
[421014453,1776927828627,-1216.79909076,0.00044198,120]
[421014454,1776927828656,-500000.0,0.00044198,120]
[421014455,1776927828685,-5000.0,0.00044198,120]
[421014456,1776927828718,-19930.65211855,0.00044198,120]
[421014457,1776927828747,-5393.5558,0.00044198,120]
[421014458,1776927828775,-40870.57369032,0.00044198,120]
[421014459,1776927828803,-24060.0,0.00044198,120]
[421014460,1776927828832,-4000.0,0.00044198,120]
[421014461,1776927828862,-4000.0,0.00044198,120]
[421014462,1776927828890,-4000.0,0.00044198,120]
[421014463,1776927828918,-4000.0,0.00044198,120]
[421014464,1776927828947,-4000.0,0.00044198,120]
[421014465,1776927828974,-2530.59,0.00044198,120]
[421014466,1776927829003,-156.19723449,0.00044198,120]
[421014467,1776927829031,-6010.55,0.00044198,120]
[421014468,1776927829059,-215.7304404,0.00044198,120]
[421014469,1776927829087,-1116.99564711,0.00044198,120]
[421014470,1776927829116,-5000.0,0.00044198,120]
[421014471,1776927829145,-33437.84419476,0.00044198,120]
[421014472,1776927829173,-6345.7061377,0.00044198,120]
[421014473,1776927829203,-3947.27785662,0.00044198,120]
[421014474,1776927829232,-380.0,0.00044198,120]
[421014475,1776927829260,-500000.0,0.00044198,120]
[421014476,1776927829290,-8531.0,0.00044198,120]
[421014477,1776927829319,-8531.0,0.00044198,120]
[421014478,1776927829347,-8531.0,0.00044198,120]
[421014479,1776927829375,-8531.0,0.00044198,120]
[421014480,1776927829404,-8531.0,0.00044198,120]
[421014481,1776927829433,-8531.0,0.00044198,120]
[421014482,1776927829471,-8531.0,0.00044198,120]
[421014483,1776927829502,-8531.0,0.00044198,120]
[421014484,1776927829532,-8531.0,0.00044198,120]
[421014485,1776927829562,-8531.0,0.00044198,120]
[421014486,1776927829592,-8531.0,0.00044198,120]
[421014487,1776927829621,-8531.0,0.00044198,120]
[421014488,1776927829652,-8531.0,0.00044198,120]
[421014489,1776927829682,-8531.0,0.00044198,120]
[421014490,1776927829711,-8531.0,0.00044198,120]
[421014491,1776927829740,-8531.0,0.00044198,120]
[421014492,1776927829770,-8531.0,0.00044198,120]
[421014493,1776927829801,-8531.0,0.00044198,120]
[421014494,1776927829830,-8531.0,0.00044198,120]
[421014495,1776927829860,-8531.0,0.00044198,120]
[421014496,1776927829892,-8531.0,0.00044198,120]
[421014497,1776927829924,-8531.0,0.00044198,120]
[421014498,1776927829958,-8531.0,0.00044198,120]
[421014499,1776927829988,-8531.0,0.00044198,120]
[421014500,1776927830019,-193.06734055,0.00044198,120]
[421014501,1776927830049,-500.0,0.00044198,120]
[421014502,1776927830080,-500.0,0.00044198,120]
[421014503,1776927830110,-500.0,0.00044198,120]
[421014504,1776927830139,-500.0,0.00044198,120]
[421014505,1776927830169,-500.0,0.00044198,120]
[421014506,1776927830199,-500.0,0.00044198,120]
[421014507,1776927830228,-500.0,0.00044198,120]
[421014508,1776927830259,-500.0,0.00044198,120]
[421014509,1776927830288,-500.0,0.00044198,120]
[421014510,1776927830319,-500.0,0.00044198,120]
[421014511,1776927830686,-500.0,0.00044198,120]
[421014512,1776927830717,-500.0,0.00044198,120]
[421014513,1776927830750,-500.0,0.00044198,120]
[421014514,1776927830780,-500.0,0.00044198,120]
[421014515,1776927830807,-500.0,0.00044198,120]